bitfinex/quotes_SOLUSD_20250301
["timestamp","ask_amount","ask_price","bid_price","bid_amount"]
[1740854237853,90.0871,141.1,141.07,3.303e-05]
[1740854240149,101.64964886,141.09,141.07,3.303e-05]
[1740854241057,101.64964886,141.08,141.07,3.303e-05]
[1740854241224,18.64964886,141.08,141.07,3.303e-05]
[1740854241745,20.64964886,141.07,141.06,3.303e-05]
[1740854242050,27.73824886,141.07,141.06,3.303e-05]
[1740854242362,25.73824886,141.07,141.06,3.303e-05]
[1740854244356,27.73824886,141.07,141.06,3.303e-05]
[1740854244731,29.73824886,141.07,141.06,3.303e-05]
[1740854245549,25.73824886,141.07,141.06,3.303e-05]
[1740854246056,27.73824886,141.07,141.06,3.303e-05]
[1740854246254,29.73824886,141.07,141.06,3.303e-05]
[1740854246455,27.73824886,141.07,141.06,3.303e-05]
[1740854246758,29.73824886,141.07,141.06,3.303e-05]
[1740854250158,27.73824886,141.07,141.06,3.303e-05]
[1740854250358,29.73824886,141.07,141.06,3.303e-05]
[1740854252650,40.64964886,141.04,141.03,3.303e-05]
[1740854252841,20.0,141.0,140.94,0.063]
[1740854253156,25.28964886,140.99,140.94,0.063]
[1740854253544,25.28964886,140.99,140.94,7.1581]
[1740854254157,6.64,140.99,140.95,7.1576]
[1740854254348,6.64,140.99,140.95,0.063]
[1740854254539,18.64964886,141.02,140.95,0.063]
[1740854255633,18.64964886,141.02,140.96,1.6652]
[1740854255848,83.0,141.04,140.97,6.1282]
[1740854258146,83.0,141.04,140.98,7.0932]
[1740854258464,83.0,141.04,140.98,24.8262]
[1740854258642,83.0,141.07,140.99,1.6309]
[1740854258963,83.0,141.07,140.99,83.9309]
[1740854260753,83.0,141.07,141.0,7.0921]
[1740854262367,83.0,141.07,141.0,24.8225]
[1740854262564,83.0,141.07,141.01,6.3046]
[1740854262774,83.03,141.09,141.02,1.6309]
[1740854264068,90.1177,141.09,141.03,7.0906]
[1740854264247,90.1177,141.09,141.02,8.7219]
[1740854264455,18.64964886,141.08,141.02,8.7219]
[1740854265844,7.0886,141.07,141.02,1.6309]
[1740854268671,90.0886,141.07,141.02,1.6309]
[1740854268872,108.22964886,141.06,140.98,1.5977]
[1740854269052,83.0,141.05,140.98,8.6907]
[1740854270047,7.0901,141.04,140.98,8.6907]
[1740854270369,7.0901,141.04,140.98,1.5977]
[1740854270676,83.0,141.03,140.98,1.5977]
[1740854271374,18.64964886,141.02,140.98,1.5977]
[1740854271672,83.0,141.01,140.98,1.5977]
[1740854272371,7.0921,141.0,140.98,1.5977]
[1740854272563,7.0921,141.0,140.97,6.2435]
[1740854273871,7.0921,141.0,140.97,0.063]
[1740854274169,83.0,140.99,140.97,0.063]
[1740854274472,101.64964886,140.98,140.97,0.063]
[1740854274672,18.64964886,140.98,140.97,0.063]
[1740854275648,25.74284886,140.98,140.97,0.063]
[1740854277255,7.0921,141.0,140.97,0.063]
[1740854277753,18.64964886,140.99,140.97,0.063]
[1740854280161,7.0932,140.98,140.97,0.063]
[1740854282072,18.64964886,140.99,140.97,0.063]
[1740854282273,25.74254886,140.99,140.97,0.063]
[1740854287582,7.0921,141.0,140.97,0.063]
[1740854287880,7.0919,141.01,140.97,0.063]
[1740854288186,7.0906,141.03,140.97,1.6708]
[1740854289281,156.70964886,141.04,140.97,8.7641]
[1740854289480,138.06,141.04,140.97,8.7641]
[1740854289862,145.1503,141.04,140.97,1.6708]
[1740854290385,18.64964886,141.03,140.97,1.6708]
[1740854291278,25.74124886,141.01,140.97,1.6708]
[1740854291660,90.0913,141.02,140.97,1.6708]
[1740854292493,83.0,141.02,140.97,1.6708]
[1740854292671,83.0,141.05,140.97,8.7644]
[1740854293560,7.0903,141.04,140.97,8.7644]
[1740854295791,7.0903,141.04,140.97,1.6708]
[1740854296094,18.64964886,141.03,140.97,1.6708]
[1740854296979,18.64964886,141.02,140.97,1.6708]
[1740854297182,101.64964886,141.02,140.97,0.063]
[1740854297489,24.8185,141.03,140.97,0.063]
[1740854297490,18.64964886,141.0,140.97,0.063]
[1740854297674,83.0,140.99,140.97,0.063]
[1740854298886,108.74284886,140.98,140.97,0.063]
[1740854299084,25.74284886,140.98,140.97,0.063]
[1740854300595,7.0932,140.98,140.97,0.063]
[1740854300965,25.74174886,141.0,140.97,0.063]
[1740854302490,13.6319,141.01,140.97,0.063]
[1740854303772,6.54,141.01,140.97,0.063]
[1740854304191,83.0,141.01,140.97,0.063]
[1740854305168,83.0,141.03,140.98,1.6427]
[1740854306602,83.0,141.03,140.98,8.7354]
[1740854308291,90.0907,141.03,140.98,8.7354]
[1740854310301,83.0,141.03,140.98,8.7354]
[1740854313690,90.0907,141.03,140.98,8.7354]
[1740854314796,83.0,141.03,140.98,8.7354]
[1740854315185,0.03,141.04,140.98,8.7354]
[1740854317193,83.0,141.03,140.98,1.6427]
[1740854317391,18.64964886,141.02,140.97,0.063]
[1740854319391,7.0916,141.01,140.97,0.063]
[1740854320191,24.8208,141.01,140.97,0.063]
[1740854322181,83.0,141.0,140.97,0.063]
[1740854324300,7.0927,140.99,140.97,0.063]
[1740854325297,101.64964886,140.98,140.97,0.063]
[1740854326702,108.74284886,140.98,140.97,0.063]
[1740854329192,114.47793164,140.98,140.97,0.063]
[1740854331000,31.47793164,140.98,140.97,0.0001]
[1740854332492,25.74284886,140.98,140.97,0.0001]
[1740854337206,7.0927,140.99,140.97,0.0001]
[1740854340805,6.44,141.01,140.97,0.0001]
[1740854341014,13.5316,141.01,140.97,0.0001]
[1740854343115,90.0924,141.0,140.97,0.0001]
[1740854346814,18.64964886,140.99,140.97,0.0001]
[1740854347807,101.64964886,140.98,140.97,0.0001]
[1740854348813,108.74284886,140.98,140.97,0.0001]
[1740854351819,25.74284886,140.98,140.97,0.0001]
[1740854366129,25.77284886,140.98,140.97,0.0001]
[1740854367326,0.03,140.98,140.97,0.0001]
[1740854368616,0.03,140.98,140.97,1.6631]
[1740854375933,0.03,140.98,140.97,8.7568]
[1740854385335,0.03,140.99,140.97,247.50644886]
[1740854385531,0.03,141.02,140.98,20.13846905]
[1740854386340,0.03,141.02,140.99,4.21449949]
[1740854386749,0.03,141.02,141.0,7.0921]
[1740854386928,0.03,141.02,141.0,89.3921]
[1740854390751,0.03,141.02,141.0,93.01584544]
[1740854400564,0.03,141.02,141.0,7.0921]
[1740854400771,0.03,141.02,140.97,1.6631]
[1740854400955,0.03,141.02,140.97,83.9631]
[1740854401151,0.03,141.02,140.98,7.0929]
[1740854403673,0.03,141.02,140.98,24.8259]
[1740854407157,0.03,141.02,140.98,7.0929]
[1740854407481,0.03,141.02,140.98,24.8259]
[1740854407653,0.03,141.02,140.98,7.0929]
[1740854409980,0.03,141.02,140.98,24.8259]
[1740854422072,0.03,141.02,141.01,20.0]
[1740854423687,0.03,141.02,141.01,27.0916]
[1740854425183,0.03,141.02,141.01,109.3916]
[1740854425385,0.0001,141.02,141.01,110.8802442]
[1740854425689,0.0001,141.02,141.01,129.52989306]
[1740854426101,0.0001,141.02,141.01,109.3916]
[1740854426886,0.0001,141.02,141.01,113.61932235]
[1740854427090,0.0001,141.02,141.01,93.61932235]
[1740854433775,0.0001,141.02,141.01,113.75754239]
[1740854434193,0.03,141.03,141.01,113.75754239]
[1740854434194,0.0001,141.03,141.01,113.75754239]
[1740854434491,0.03,141.07,141.05,20.0]
[1740854434682,0.03,141.07,141.05,102.3]
[1740854435778,0.03,141.07,141.06,7.0891]
[1740854436905,0.03,141.07,141.06,243.83874886]
[1740854438506,0.03,141.07,141.06,248.05503738]
[1740854440189,0.03,141.09,141.08,20.0]
[1740854440388,0.03,141.09,141.08,102.3]
[1740854442004,0.03,141.09,141.08,109.3881]
[1740854442211,0.03,141.09,141.08,102.3]
[1740854442395,0.03,141.09,141.08,109.3881]
[1740854442903,0.03,141.09,141.08,102.3]
[1740854444015,0.03,141.09,141.08,82.3]
[1740854445392,0.03,141.09,141.05,82.3]
[1740854446207,0.03,141.09,141.03,82.3]
[1740854446503,6.583,141.08,141.03,82.3]
[1740854447295,6.583,141.08,141.03,89.3906]
[1740854447989,6.583,141.08,141.03,82.3]
[1740854448184,7.0886,141.07,141.02,82.3]
[1740854448389,1.5274,141.06,141.0,0.063]
[1740854449790,7.0896,141.05,141.0,0.063]
[1740854450910,1.5274,141.06,141.0,0.063]
[1740854451091,8.6167,141.06,141.0,0.063]
[1740854452019,91.6167,141.06,141.0,0.063]
[1740854453218,84.5274,141.06,141.0,0.063]
[1740854454911,91.6166,141.06,141.0,0.063]
[1740854460818,84.5274,141.06,141.0,0.063]
[1740854461925,1.5274,141.06,141.0,82.363]
[1740854463124,90.0882,141.08,141.0,89.9694]
[1740854463426,7.1177,141.09,141.01,31.2608]
[1740854464925,0.03,141.09,141.01,31.2608]
[1740854465600,0.03,141.09,141.01,32.74932764]
[1740854466322,0.03,141.09,141.04,20.0]
[1740854466828,0.03,141.09,141.05,24.8138]
[1740854470032,0.03,141.09,141.05,107.1138]
[1740854475424,0.03,141.09,141.08,20.0]
[1740854475647,0.03,141.09,141.08,102.3]
[1740854475850,0.03,141.09,141.08,109.3881]
[1740854481650,0.03,141.13,141.08,109.3881]
[1740854481950,0.03,141.13,141.12,20.0]
[1740854482149,0.03,141.13,141.12,102.3]
[1740854482753,0.03,141.13,141.12,109.3861]
[1740854486053,0.03,141.13,141.12,102.3]
[1740854486736,0.03,141.13,141.12,82.3]
[1740854489659,1.6266,141.13,141.07,88.74]
[1740854490246,1.6266,141.13,141.08,24.8085]
[1740854490451,0.03,141.13,141.08,24.8085]
[1740854494669,0.03,141.13,141.08,242.9085]
[1740854495966,0.03,141.13,141.11,7.0866]
[1740854496261,0.03,141.13,141.11,89.3866]
[1740854498080,0.03,141.13,141.11,82.3]
[1740854500372,0.03,141.13,141.08,218.1]
[1740854500675,6.4287,141.12,141.08,82.3]
[1740854502576,6.4287,141.12,141.08,89.3881]
[1740854515871,13.5149,141.12,141.08,82.3]
[1740854516473,20.26024886,141.11,141.06,0.063]
[1740854516675,103.26024886,141.11,141.06,0.063]
[1740854516881,6.42,141.1,141.06,0.063]
[1740854517678,7.0876,141.09,141.06,0.063]
[1740854518899,18.64964886,141.08,141.06,0.063]
[1740854519972,7.0886,141.07,141.06,0.063]
[1740854520293,33.24964886,141.07,141.06,0.063]
[1740854521696,14.6,141.07,141.06,0.063]
[1740854521881,7.5114,141.07,141.06,0.063]
[1740854525191,6.42,141.1,141.06,0.063]
[1740854526404,18.64964886,141.09,141.06,0.063]
[1740854527710,25.73734886,141.09,141.06,0.063]
[1740854528610,25.76734886,141.09,141.06,0.063]
[1740854528982,7.7557,141.07,141.06,0.063]
[1740854529183,90.7557,141.07,141.06,0.063]
[1740854529692,97.8443,141.07,141.06,0.063]
[1740854532382,90.7557,141.07,141.06,0.063]
[1740854532710,83.0,141.07,141.06,0.063]
[1740854533210,25.76754886,141.09,141.06,0.063]
[1740854533211,18.64964886,141.08,141.06,0.063]
[1740854535490,83.03,141.09,141.06,0.063]
[1740854535698,0.03,141.09,141.06,0.063]
[1740854536383,0.03,141.09,141.06,82.363]
[1740854536592,0.03,141.09,141.06,0.063]
[1740854538386,0.03,141.09,141.06,82.363]
[1740854539012,0.03,141.09,141.08,20.0]
[1740854540118,0.03,141.09,141.08,27.0881]
[1740854540290,0.03,141.09,141.08,109.3881]
[1740854541910,0.03,141.09,141.08,102.3]
[1740854543014,0.03,141.09,141.08,109.3881]
[1740854547624,0.03,141.09,141.08,82.3]
[1740854549526,0.03,141.09,141.06,89.4519]
[1740854551801,0.03,141.09,141.08,20.0]
[1740854552494,0.03,141.09,141.08,102.3]
[1740854552702,0.03,141.13,141.12,20.0]
[1740854552904,0.03,141.13,141.12,102.3]
[1740854553748,0.03,141.14,141.12,245.1861]
[1740854553930,0.0001,141.14,141.12,245.1861]
[1740854554110,0.0001,141.14,141.13,1.5322]
[1740854555714,0.0001,141.14,141.13,8.6178]
[1740854556727,0.0001,141.14,141.13,226.7178]
[1740854557618,0.03,141.17,141.16,20.0]
[1740854557824,0.03,141.17,141.16,238.1]
[1740854559616,0.03,141.17,141.16,245.1841]
[1740854559820,0.03,141.17,141.16,109.3841]
[1740854562919,77.7018,141.13,141.06,0.063]
[1740854563120,32.58016285,141.12,141.06,0.063]
[1740854563334,54.39336294,141.12,141.06,0.063]
[1740854564137,25.20964886,141.12,141.06,0.063]
[1740854567434,48.4236366,141.12,141.06,0.063]
[1740854568231,55.5098366,141.12,141.06,0.063]
[1740854568444,18.64964886,141.1,141.06,0.063]
[1740854572835,83.0,141.11,141.06,0.063]
[1740854573214,6.5,141.11,141.06,0.063]
[1740854574534,6.5,141.12,141.06,0.063]
[1740854575634,6.5,141.12,141.06,7.1521]
[1740854576441,6.5,141.12,141.06,89.4521]
[1740854576941,6.0,141.12,141.06,89.4521]
[1740854577643,6.0,141.12,141.06,107.175]
[1740854578346,6.0,141.12,141.06,89.4521]
[1740854580343,18.64964886,141.11,141.06,0.063]
[1740854580650,50.0,141.07,141.06,0.063]
[1740854580947,83.16554886,141.07,141.06,0.063]
[1740854582243,90.25414886,141.07,141.06,0.063]
[1740854582645,8.0142,141.07,141.06,0.063]
[1740854585646,6.5,141.07,141.06,0.063]
[1740854589856,13.5886,141.07,141.06,0.063]
[1740854590446,7.0876,141.09,141.06,0.063]
[1740854590647,131.48,141.13,141.06,82.363]
[1740854591451,18.64964886,141.12,141.06,82.363]
[1740854592130,25.73594886,141.12,141.06,82.363]
[1740854593037,18.64964886,141.12,141.06,89.4521]
[1740854594056,131.48,141.13,141.06,89.4521]
[1740854596663,131.48,141.13,141.06,107.175]
[1740854600158,131.51,141.13,141.06,107.175]
[1740854604245,0.03,141.13,141.06,107.175]
[1740854604560,7.1156,141.13,141.06,107.175]
[1740854605136,0.03,141.13,141.06,107.175]
[1740854607658,0.03,141.13,141.09,7.0876]
[1740854608562,0.03,141.13,141.09,8.6803]
[1740854608767,0.03,141.13,141.09,90.9803]
[1740854609665,0.03,141.13,141.09,115.3628]
[1740854611865,0.03,141.13,141.09,97.6437]
[1740854631586,0.03,141.13,141.09,115.3628]
[1740854635360,0.03,141.13,141.09,115.4258]
[1740854636072,0.03,141.13,141.11,7.0866]
[1740854637382,0.03,141.13,141.1,7.0871]
[1740854647896,0.03,141.13,141.1,7.1501]
[1740854651778,0.03,141.13,141.1,0.063]
[1740854666801,0.03,141.13,141.1,82.363]
[1740854667000,0.03,141.13,141.11,4.22110933]
[1740854667921,0.03,141.13,141.12,7.0861]
[1740854669017,0.03,141.13,141.11,7.0866]
[1740854681528,0.03,141.13,141.11,89.3866]
[1740854683129,0.03,141.13,141.12,4.21195319]
[1740854683725,0.03,141.13,141.12,11.29805319]
[1740854687310,0.03,141.13,141.12,7.0861]
[1740854691139,0.03,141.13,141.11,89.4494]
[1740854693734,0.03,141.13,141.11,82.363]
[1740854694218,0.03,141.13,141.11,89.4495]
[1740854696444,0.03,141.13,141.11,7.1495]
[1740854696637,0.03,141.13,141.11,0.063]
[1740854697336,0.03,141.13,141.11,218.163]
[1740854698642,0.03,141.13,141.12,7.0861]
[1740854699740,0.03,141.13,141.12,11.29569841]
[1740854703045,0.03,141.13,141.12,7.0861]
[1740854706441,0.03,141.13,141.11,89.4494]
[1740854706952,0.03,141.13,141.12,0.063]
[1740854711752,0.03,141.14,141.12,82.363]
[1740854711960,0.03,141.17,141.12,82.363]
[1740854712260,0.03,141.17,141.12,218.163]
[1740854712632,0.03,141.17,141.13,24.7997]
[1740854713157,0.03,141.17,141.14,4.20566154]
[1740854714559,0.03,141.17,141.15,7.0846]
[1740854714769,0.03,141.17,141.15,225.1846]
[1740854714938,0.03,141.18,141.15,225.1846]
[1740854715257,0.03,141.18,141.15,242.8962]
[1740854716357,0.03,141.18,141.16,4.20107354]
[1740854716856,0.03,141.18,141.17,7.0836]
[1740854718642,0.03,141.18,141.15,235.8116]
[1740854718844,0.03,141.18,141.16,7.0841]
[1740854719353,0.03,141.18,141.16,10.60476305]
[1740854720260,0.03,141.18,141.16,92.90476305]
[1740854725453,0.03,141.18,141.16,94.90476305]
[1740854725660,0.03,141.19,141.18,20.0]
[1740854725859,0.03,141.19,141.18,102.3]
[1740854726940,0.03,141.19,141.18,109.3831]
[1740854729165,0.03,141.19,141.18,245.1831]
[1740854731947,0.03,141.19,141.18,225.1831]
[1740854733561,1.5423,141.23,141.16,82.3]
[1740854733862,6.42,141.22,141.17,7.0834]
[1740854737684,13.5012,141.22,141.17,7.0834]
[1740854738387,6.42,141.22,141.17,7.0834]
[1740854739884,13.5011,141.22,141.17,7.0834]
[1740854740177,6.42,141.22,141.17,7.0834]
[1740854741262,13.5013,141.22,141.17,7.0834]
[1740854741462,6.42,141.22,141.17,7.0834]
[1740854743764,6.45,141.22,141.17,7.0834]
[1740854744095,6.45,141.22,141.17,24.7925]
[1740854744270,6.45,141.22,141.17,108.607]
[1740854744866,0.03,141.22,141.17,108.607]
[1740854752694,0.03,141.22,141.18,4.1875965]
[1740854753270,0.03,141.22,141.19,7.0826]
[1740854753472,0.03,141.22,141.19,89.3826]
[1740854754975,0.03,141.22,141.19,89.3825]
[1740854759402,0.03,141.22,141.19,107.0891]
[1740854767020,0.03,141.22,141.19,89.3825]
[1740854769417,0.03,141.22,141.19,89.4455]
[1740854770804,0.03,141.22,141.19,0.063]
[1740854777614,6.42,141.21,141.19,0.063]
[1740854777912,89.42,141.21,141.19,0.063]
[1740854778113,68.64964886,141.2,141.19,0.063]
[1740854778812,74.91284886,141.2,141.19,0.063]
[1740854779395,81.99494886,141.2,141.19,0.063]
[1740854780202,63.3453,141.2,141.19,0.063]
[1740854780405,57.0821,141.2,141.19,0.063]
[1740854780609,50.0,141.2,141.19,0.063]
[1740854780895,0.03,141.22,141.19,0.063]
[1740854784312,83.0,141.21,141.19,0.063]
[1740854784517,133.0,141.21,141.19,0.063]
[1740854785007,83.0,141.21,141.19,0.063]
[1740854786528,0.03,141.22,141.19,0.063]
[1740854791732,20.0,141.2,141.19,0.063]
[1740854792028,151.64964886,141.19,141.16,0.063]
[1740854792210,89.42,141.18,141.16,0.063]
[1740854793840,7.0836,141.17,141.16,0.063]
[1740854794332,75.73324886,141.17,141.16,0.063]
[1740854799230,75.73324886,141.17,141.06,0.063]
[1740854799231,70.0,141.12,141.06,0.063]
[1740854799410,68.64964886,141.1,141.06,0.063]
[1740854799609,83.0,141.09,141.06,0.063]
[1740854799815,82.23307468,141.09,141.06,0.063]
[1740854801721,89.32077468,141.09,141.06,0.063]
[1740854802721,75.73794886,141.08,141.06,0.063]
[1740854803427,157.97102354,141.08,141.06,0.063]
[1740854803830,100.88272354,141.07,141.06,0.063]
[1740854804537,20.64964886,141.07,141.06,0.063]
[1740854804720,20.64964886,141.07,141.05,0.063]
[1740854804721,68.64964886,141.06,141.05,0.063]
[1740854804925,82.15874886,141.06,141.05,0.063]
[1740854806040,86.15874886,141.06,141.05,0.0001]
[1740854807836,92.64964886,141.03,141.02,0.063]
[1740854808437,92.64964886,141.03,141.01,0.063]
[1740854808438,22.64964886,141.02,141.01,0.063]
[1740854809650,29.74074886,141.02,141.01,0.063]
[1740854810052,27.74074886,141.02,141.01,0.063]
[1740854810254,29.74074886,141.02,141.01,0.063]
[1740854811140,27.74074886,141.02,141.01,0.063]
[1740854811450,25.74074886,141.02,141.01,0.063]
[1740854811630,27.74074886,141.02,141.01,0.063]
[1740854816042,25.74074886,141.02,141.01,0.063]
[1740854816742,25.74074886,141.02,140.95,0.063]
[1740854816743,20.0,140.99,140.93,6.9736]
[1740854816925,26.42,140.99,140.93,6.9736]
[1740854820031,33.5128,140.99,140.93,6.9736]
[1740854820337,26.42,140.99,140.93,6.9736]
[1740854820730,33.5127,140.99,140.93,6.9736]
[1740854821453,26.42,140.99,140.93,6.9736]
[1740854821630,83.0,141.01,140.93,24.7129]
[1740854821830,89.42,141.01,140.94,1.535]
[1740854822050,89.42,141.01,140.95,6.161]
[1740854822248,83.0,141.03,140.95,88.461]
[1740854822445,89.42,141.03,140.95,88.461]
[1740854822657,83.0,141.03,140.95,88.461]
[1740854822862,83.0,141.03,140.96,1.535]
[1740854823158,137.96,141.05,140.96,83.835]
[1740854823990,131.54,141.05,140.97,24.8279]
[1740854824138,131.54,141.05,140.98,6.5095]
[1740854824337,131.54,141.05,140.98,88.8095]
[1740854826149,131.54,141.05,140.99,7.0927]
[1740854826354,138.6297,141.05,140.99,7.0927]
[1740854827053,131.54,141.05,140.99,7.0927]
[1740854827568,131.54,141.05,140.99,24.8244]
[1740854829285,131.54,141.05,141.0,1.5636]
[1740854829874,131.54,141.05,141.0,83.8636]
[1740854830249,0.063,141.06,141.0,83.8636]
[1740854830782,0.063,141.06,141.01,7.0916]
[1740854831382,0.063,141.05,141.01,7.0916]
[1740854831679,0.063,141.05,141.0,83.8636]
[1740854831884,101.64964886,141.04,141.0,1.5636]
[1740854832179,139.42,141.03,140.97,7.0935]
[1740854832360,101.64964886,141.02,140.97,7.0935]
[1740854832765,108.74124886,141.02,140.97,7.0935]
[1740854833354,108.74124886,141.02,140.96,8.6575]
[1740854835083,101.64964886,141.02,140.96,8.6575]
[1740854836358,83.0,141.02,140.96,8.6575]
[1740854836856,83.0,141.02,140.96,26.393]
[1740854837392,0.063,141.05,140.96,108.693]
[1740854837566,0.063,141.05,140.96,144.164]
[1740854837892,7.1527,141.05,140.96,108.693]
[1740854838059,0.063,141.05,140.96,108.693]
[1740854838880,0.063,141.05,140.96,244.493]
[1740854839582,0.063,141.05,140.96,279.964]
[1740854841188,0.063,141.05,140.97,4.20586792]
[1740854841495,0.063,141.05,140.98,24.8262]
[1740854842162,0.063,141.05,140.98,107.1262]
[1740854846524,68.71264886,141.05,140.98,89.3932]
[1740854847567,68.71264886,141.05,140.97,7.0935]
[1740854847568,7.0911,141.02,140.97,7.0935]
[1740854855304,7.1541,141.02,140.97,7.0935]
[1740854857492,7.1541,141.02,140.96,1.5636]
[1740854857674,7.1541,141.02,140.96,8.6576]
[1740854859107,151.64964886,141.01,140.96,1.5636]
[1740854859399,7.0921,141.0,140.96,1.5636]
[1740854861523,90.0921,141.0,140.95,6.5095]
[1740854861703,90.0921,141.0,140.93,7.1254]
[1740854864594,107.8225,141.0,140.93,7.1254]
[1740854865202,50.0,140.95,140.93,0.03]
[1740854865404,133.0,140.95,140.93,0.03]
[1740854866497,7.0952,140.94,140.93,0.03]
[1740854868510,25.74484886,140.94,140.93,0.03]
[1740854868713,108.74484886,140.94,140.93,0.03]
[1740854870119,50.0,140.91,140.86,0.03]
[1740854870317,50.0,140.89,140.86,0.03]
[1740854870518,133.0,140.89,140.86,0.03]
[1740854871004,68.64964886,140.87,140.86,0.03]
[1740854871187,151.64964886,140.87,140.86,0.03]
[1740854880817,6.42,140.88,140.86,0.03]
[1740854886826,133.0,140.89,140.86,0.03]
[1740854889132,18.64964886,140.88,140.86,0.03]
[1740854890427,25.74784886,140.88,140.86,0.03]
[1740854890817,18.64964886,140.88,140.86,0.03]
[1740854894041,83.0,140.89,140.86,0.03]
[1740854894230,83.0,140.91,140.87,1.5782]
[1740854894532,0.063,140.92,140.87,1.5782]
[1740854895612,0.063,140.92,140.86,0.03]
[1740854895613,50.0,140.91,140.86,0.03]
[1740854896228,140.0971,140.91,140.86,0.03]
[1740854896629,6.42,140.9,140.86,0.03]
[1740854898834,68.64964886,140.89,140.86,0.03]
[1740854899024,151.64964886,140.89,140.86,0.03]
[1740854900047,83.0,140.89,140.86,0.03]
[1740854903450,83.0,140.89,140.87,1.5959]
[1740854904442,133.0,140.88,140.86,0.03]
[1740854904748,18.64964886,140.87,140.86,0.03]
[1740854904939,101.64964886,140.87,140.86,0.03]
[1740854905243,108.74834886,140.87,140.86,0.03]
[1740854912349,83.0,140.87,140.86,0.03]
[1740854912725,6.42,140.91,140.86,0.03]
[1740854913033,0.063,140.92,140.86,0.03]
[1740854914663,0.063,140.92,140.86,7.1292]
[1740854915636,0.063,140.92,140.86,24.8773]
[1740854918858,18.71264886,140.92,140.86,24.8773]
[1740854919431,18.71264886,140.92,140.86,7.1292]
[1740854919854,18.64964886,140.9,140.86,0.03]
[1740854920158,25.06964886,140.9,140.86,0.03]
[1740854921758,82.16694886,140.9,140.86,0.03]
[1740854923938,18.64964886,140.87,140.86,0.03]
[1740854924753,133.0,140.88,140.86,0.03]
[1740854925159,83.0,140.88,140.86,0.03]
[1740854925947,90.0982,140.88,140.86,0.03]
[1740854926149,18.64964886,140.87,140.86,0.03]
[1740854926872,25.74834886,140.87,140.86,0.03]
[1740854936969,18.64964886,140.87,140.86,0.03]
[1740854937466,83.0,140.88,140.86,0.03]
[1740854937668,83.0,140.89,140.86,0.03]
[1740854938669,131.68,140.9,140.86,0.03]
[1740854940956,6.44,140.91,140.86,0.03]
[1740854950384,13.5367,140.91,140.86,0.03]
[1740854951279,18.64964886,140.9,140.86,0.03]
[1740854951686,18.64964886,140.88,140.86,0.03]
[1740854954388,17.24527177,140.88,140.86,0.03]
[1740854954976,24.34377177,140.88,140.86,0.03]
[1740854959177,50.0,140.87,140.86,0.03]
[1740854959380,133.0,140.87,140.86,0.03]
[1740854960693,83.0,140.87,140.86,0.03]
[1740854960887,101.64964886,140.87,140.86,0.03]